bitfinex/quotes_ETHUSD_20250603
["timestamp","ask_amount","ask_price","bid_price","bid_amount"]
[1748939719359,3.84709423,2599.4,2599.1,0.02]
[1748939719360,3.84706989,2599.4,2599.1,0.02]
[1748939719522,3.84706989,2599.4,2598.9,9.27]
[1748939719720,3.84706989,2599.4,2599.1,9.27]
[1748939719920,3.84706989,2599.4,2599.1,2.80266729]
[1748939720239,3.84706989,2599.4,2599.0,10.0]
[1748939720411,3.936,2599.5,2599.1,10.0]
[1748939720606,3.84716653,2599.4,2599.1,3.753763]
[1748939721352,3.936,2599.5,2599.1,3.753763]
[1748939721510,3.8471337,2599.4,2599.1,3.753763]
[1748939722009,3.8471337,2599.4,2599.1,2.055678]
[1748939722315,3.936,2599.5,2599.1,2.055678]
[1748939723240,3.84720748,2599.3,2599.1,2.055678]
[1748939723428,3.84733764,2599.2,2599.0,10.0]
[1748939723632,7.78294919,2599.5,2599.0,8.932371]
[1748939723833,0.55,2600.2,2599.0,8.932371]
[1748939723834,0.9906,2599.8,2599.2,8.0]
[1748939724021,7.78368886,2599.7,2599.2,8.0]
[1748939724545,7.78368886,2599.7,2599.2,10.0]
[1748939724707,7.78368886,2599.7,2599.2,3.84733752]
[1748939724908,5.19906254,2599.7,2599.2,10.0]
[1748939725113,3.84721527,2599.3,2598.7,3.94593504]
[1748939725308,3.937,2599.3,2598.8,10.0]
[1748939725523,3.937,2599.3,2598.9,10.0]
[1748939725727,3.84734587,2599.2,2598.9,10.0]
[1748939725929,7.78433521,2599.3,2598.8,10.0]
[1748939726146,3.84735574,2599.2,2598.8,10.0]
[1748939726451,3.84735574,2599.2,2598.9,8.0]
[1748939726625,0.9788,2599.1,2598.7,8.39286373]
[1748939727149,3.937,2599.0,2598.9,8.0]
[1748939727360,3.937,2599.0,2598.7,0.39286373]
[1748939727718,3.937,2599.0,2598.6,8.19272221]
[1748939727942,3.937,2599.0,2598.8,8.0]
[1748939728332,3.937,2599.0,2598.6,10.0723827]
[1748939728526,3.937,2599.0,2598.6,0.3835629]
[1748939728749,3.937,2599.0,2598.4,6.76835634]
[1748939729055,3.937,2599.0,2598.7,10.0]
[1748939729257,3.937,2599.0,2598.7,5.355791]
[1748939729465,7.78471725,2599.0,2598.7,10.0]
[1748939729621,0.9592,2598.9,2598.2,5.430134]
[1748939729821,3.84792981,2598.8,2598.3,10.0]
[1748939730042,7.78508422,2598.7,2598.4,10.0]
[1748939730367,3.937,2598.7,2598.4,10.0]
[1748939730518,3.937,2598.6,2598.3,10.0]
[1748939730853,3.937,2598.8,2598.6,8.0]
[1748939731160,0.9592,2599.5,2598.8,8.0]
[1748939731366,3.84724377,2599.3,2598.8,10.91993504]
[1748939731657,3.84724377,2599.3,2598.9,4.933175]
[1748939731956,3.937,2599.2,2599.0,10.0]
[1748939732156,3.937,2599.2,2598.9,8.677175]
[1748939732458,3.937,2599.2,2599.0,10.0]
[1748939732621,3.937,2599.2,2598.9,3.503221]
[1748939732821,3.937,2599.2,2599.0,9.9]
[1748939733049,3.937,2599.2,2598.9,3.503221]
[1748939733257,3.937,2599.2,2599.0,10.0]
[1748939733453,3.937,2599.2,2598.9,6.023221]
[1748939733655,3.937,2599.2,2599.0,10.0]
[1748939733818,3.8470822,2599.4,2598.9,6.022645]
[1748939734026,2.63584238,2602.2,2599.3,14.407819]
[1748939734027,0.9263,2599.8,2599.3,14.407819]
[1748939734233,3.84669239,2599.7,2599.3,8.0]
[1748939734465,8.70980901,2599.8,2599.3,8.0]
[1748939735465,3.84665004,2599.7,2599.3,8.0]
[1748939736344,8.70977707,2599.8,2599.3,8.0]
[1748939736758,8.70981815,2599.8,2599.3,8.0]
[1748939738169,3.84619232,2600.0,2599.6,2.91993504]
[1748939738170,3.84615631,2600.0,2599.6,2.91993504]
[1748939738369,3.937,2599.8,2599.6,2.91993504]
[1748939738556,3.937,2599.8,2599.6,10.0]
[1748939738863,3.937,2599.8,2599.6,7.653729]
[1748939739164,3.937,2599.8,2599.6,4.965997]
[1748939739366,3.937,2599.9,2599.6,4.554997]
[1748939740157,7.78331032,2599.9,2599.6,4.554997]
[1748939740876,3.84601515,2600.1,2599.6,4.554997]
[1748939741170,3.84601515,2600.1,2599.6,2.91993504]
[1748939741479,3.937,2600.1,2600.0,2.91993504]
[1748939741680,4.82304526,2600.5,2600.0,2.91993504]
[1748939741987,7.78263158,2600.4,2600.0,2.91993504]
[1748939742560,3.937,2600.3,2600.0,2.91993504]
[1748939742882,3.937,2600.3,2599.9,10.0]
[1748939743088,3.84563201,2600.4,2599.9,8.0]
[1748939743286,3.937,2600.3,2599.9,11.84629561]
[1748939743597,3.937,2600.3,2600.0,2.91993504]
[1748939743883,3.84560791,2600.4,2600.0,2.91993504]
[1748939744088,3.936,2600.3,2600.0,2.91993504]
[1748939744495,4.82306947,2600.5,2600.0,2.91993504]
[1748939744662,7.7815965,2600.4,2600.0,2.91993504]
[1748939744861,3.936,2600.3,2600.0,2.91993504]
[1748939748890,3.8455965,2600.4,2600.0,2.91993504]
[1748939749091,3.936,2600.4,2600.1,2.143146]
[1748939750009,3.84543632,2600.5,2600.1,2.143146]
[1748939750166,3.84511862,2600.7,2600.1,2.143146]
[1748939750366,3.84556871,2600.4,2600.1,2.143146]
[1748939751704,3.84571545,2600.3,2600.1,2.143146]
[1748939751905,3.8456007,2600.4,2600.1,2.143146]
[1748939752483,3.84585801,2600.2,2600.1,2.143146]
[1748939752800,1.0438,2600.4,2600.0,12.91993504]
[1748939753106,3.84565857,2600.4,2600.0,2.91993504]
[1748939754118,3.84594352,2600.2,2599.9,2.591861]
[1748939754432,1.26709791,2600.4,2599.9,2.591861]
[1748939754433,3.84571011,2600.3,2599.9,2.591861]
[1748939754912,3.84639897,2599.9,2599.5,5.410301]
[1748939755081,4.9636,2600.2,2599.6,2.91993504]
[1748939755427,3.84609543,2600.1,2599.6,2.91993504]
[1748939755823,3.84609543,2600.1,2599.6,16.76665585]
[1748939756122,4.87452494,2600.2,2599.6,6.76665585]
[1748939756289,3.935,2600.1,2599.6,6.76665585]
[1748939756604,3.84623936,2600.0,2599.6,2.91993504]
[1748939756969,7.78102957,2600.1,2599.6,2.91993504]
[1748939757174,3.84636557,2599.9,2599.6,2.91993504]
[1748939757699,3.84636557,2599.9,2599.6,8.0]
[1748939758207,3.84624733,2600.0,2599.5,8.0]
[1748939758507,1.35279194,2600.0,2599.5,8.0]
[1748939758815,3.8467152,2599.7,2599.5,8.0]
[1748939759379,3.84674565,2599.6,2599.5,8.0]
[1748939759710,4.85546983,2599.8,2599.4,0.38679785]
[1748939759896,4.85546983,2599.8,2599.2,14.76725879]
[1748939760103,3.935,2599.7,2599.2,14.76725879]
[1748939760300,7.78161946,2599.7,2599.2,10.91993504]
[1748939760514,5.19868331,2599.7,2599.2,2.91993504]
[1748939760722,3.84696287,2599.5,2599.2,10.0]
[1748939760930,3.84690691,2599.5,2599.1,8.38891087]
[1748939761420,3.84690691,2599.5,2599.1,8.0]
[1748939761794,3.8468089,2599.6,2599.3,10.0]
[1748939762113,7.78162108,2599.7,2599.2,8.26548104]
[1748939762330,9.04531247,2599.7,2599.3,10.0]
[1748939762683,3.8467623,2599.6,2599.3,10.0]
[1748939763196,9.04532629,2599.7,2599.3,10.0]
[1748939763728,3.935,2599.7,2599.4,6.7668918]
[1748939763883,3.935,2599.7,2599.2,2.91993504]
[1748939764385,3.935,2599.7,2599.2,10.91993504]
[1748939765080,3.935,2599.7,2599.2,14.76726369]
[1748939766203,3.935,2599.7,2599.3,3.84718074]
[1748939767114,3.935,2599.7,2599.2,10.91993504]
[1748939767313,3.935,2599.7,2599.3,1.6169869]
[1748939767891,3.935,2599.7,2599.3,5.46416727]
[1748939768091,3.935,2599.7,2599.4,6.76695224]
[1748939768294,3.935,2599.7,2599.5,10.0]
[1748939768703,3.935,2599.8,2599.5,10.0]
[1748939769829,4.86408381,2600.0,2599.5,9.83838751]
[1748939770008,3.935,2599.9,2599.6,2.91993504]
[1748939770327,3.935,2599.9,2599.6,6.76667729]
[1748939770630,4.85349576,2600.2,2599.7,10.0]
[1748939770832,7.78106665,2600.1,2599.7,10.0]
[1748939771340,4.85348021,2600.2,2599.7,10.0]
[1748939771549,0.9636,2600.4,2599.8,2.91993504]
[1748939771832,3.84578759,2600.3,2599.9,10.0]
[1748939772033,8.74417401,2600.4,2599.9,10.0]
[1748939772034,3.84585888,2600.2,2599.9,10.0]
[1748939773135,3.84607604,2600.1,2599.7,12.47667956]
[1748939773310,3.84590165,2600.2,2599.7,8.0]
[1748939773639,3.8460214,2600.1,2599.7,8.0]
[1748939773926,1.021,2600.0,2599.2,8.0]
[1748939774102,1.021,2600.0,2599.3,1.025]
[1748939774319,3.84652247,2599.8,2599.3,9.025]
[1748939774518,3.84652247,2599.8,2599.3,11.94493504]
[1748939774706,3.84652247,2599.8,2599.3,10.91993504]
[1748939775752,3.84663859,2599.7,2599.3,10.91993504]
[1748939776245,3.84631223,2599.9,2599.3,10.91993504]
[1748939776491,3.84652032,2599.8,2599.3,10.91993504]
[1748939778752,8.66153312,2599.9,2599.3,10.91993504]
[1748939778952,7.7813019,2599.9,2599.3,14.76701553]
[1748939779115,7.7813019,2599.9,2599.4,3.84700434]
[1748939779464,7.7813019,2599.9,2599.3,14.76699645]
[1748939779632,3.935,2599.9,2599.5,3.84685078]
[1748939780329,3.935,2599.9,2599.5,6.76678582]
[1748939780530,4.86715863,2600.0,2599.5,8.62818104]
[1748939780730,8.80215863,2600.0,2599.5,6.76678582]
[1748939781128,4.956,2600.0,2599.5,6.76678582]
[1748939781318,8.80215617,2600.0,2599.5,6.76678582]
[1748939783922,7.78116633,2600.0,2599.5,16.76671559]
[1748939784230,7.78123767,2600.0,2599.5,8.0]
[1748939784440,3.84634648,2599.9,2599.5,8.0]
[1748939784976,3.84634648,2599.9,2599.4,8.0]
[1748939785724,3.84634648,2599.9,2599.4,11.846998]
[1748939786057,3.84634648,2599.9,2599.4,3.846998]
[1748939786254,3.84634648,2599.9,2599.4,13.846998]
[1748939786554,3.935,2600.0,2599.5,2.718298]
[1748939786765,4.81404477,2600.0,2599.4,13.846998]
[1748939786962,3.84641733,2599.9,2599.5,10.0]
[1748939787644,4.80661221,2599.8,2599.3,12.91993504]
[1748939787975,4.80661221,2599.8,2599.3,2.91993504]
[1748939788766,4.80661221,2599.8,2599.4,8.0]
[1748939789172,0.9601,2599.8,2599.4,8.0]
[1748939790024,7.78120359,2600.0,2599.4,8.0]
[1748939790224,7.78120359,2600.0,2599.5,3.84688053]
[1748939790753,8.24301107,2600.0,2599.4,3.84697867]
[1748939791276,4.8251633,2600.1,2599.5,6.76680668]
[1748939791418,8.7591633,2600.1,2599.6,10.0]
[1748939791627,4.8251633,2600.1,2599.7,10.0]
[1748939791935,3.934,2600.0,2599.7,10.0]
[1748939792667,7.78016868,2600.0,2599.7,10.0]
[1748939792872,0.9791,2600.1,2599.7,2.91993504]
[1748939793038,0.9738,2600.4,2600.0,11.84607727]
[1748939793366,0.9738,2600.4,2600.0,8.909313]
[1748939795842,0.9738,2600.4,2600.0,6.823823]
[1748939796041,4.81938546,2600.4,2600.1,10.0]
[1748939796240,0.9738,2600.4,2600.0,16.823823]
[1748939796445,0.9738,2600.4,2600.1,10.0]
[1748939796974,0.9738,2600.4,2600.0,9.343823]
[1748939797177,0.9738,2600.4,2600.1,10.0]
[1748939797378,0.9738,2600.4,2600.0,7.913954]
[1748939797689,0.9738,2600.4,2600.1,10.0]
[1748939797830,4.9338,2600.7,2600.3,2.91993504]
[1748939798159,8.77900842,2600.7,2600.2,8.0]
[1748939798460,4.9338,2600.7,2600.2,11.84581318]
[1748939799127,4.9338,2600.7,2600.2,8.0]
[1748939799355,8.77892001,2600.7,2600.2,8.0]
[1748939799541,3.8453651,2600.6,2600.2,8.0]
[1748939800261,8.77897462,2600.7,2600.2,10.0]
[1748939800722,3.845354,2600.6,2600.1,2.91993504]
[1748939801217,3.845354,2600.6,2600.2,10.0]
[1748939801520,3.845354,2600.6,2600.1,3.84599208]
[1748939802139,3.845354,2600.6,2600.1,3.8459844]
[1748939802286,3.845354,2600.6,2600.2,10.0]
[1748939803032,3.845354,2600.6,2600.1,18.23768988]
[1748939803334,3.845354,2600.6,2600.1,3.84597488]
[1748939803494,8.77898606,2600.7,2600.2,13.84583661]
[1748939803686,4.84498606,2600.7,2600.2,10.0]
[1748939803887,3.84529894,2600.6,2600.2,10.0]
[1748939804138,8.77798189,2600.7,2600.1,5.9132128]
[1748939806231,3.84565302,2600.4,2600.0,8.0]
[1748939806527,1.0319,2600.2,2599.9,1.21623955]
[1748939808018,1.0319,2600.2,2599.9,5.06253881]
[1748939809222,0.9589,2600.4,2600.0,13.8461387]
[1748939812437,0.9589,2600.4,2600.0,10.0]
[1748939814204,0.9589,2600.4,2600.0,13.84615383]
[1748939815520,0.9589,2600.4,2600.0,10.0]
[1748939815839,0.9589,2600.4,2599.9,5.06248991]
[1748939816541,0.9589,2600.4,2600.0,10.0]
[1748939816916,0.9589,2600.4,2600.0,2.65283708]
[1748939817123,0.9589,2600.4,2599.9,5.06247117]
[1748939817324,0.9589,2600.4,2600.0,10.0]
[1748939817617,0.9589,2600.4,2600.0,13.84611835]
[1748939817814,0.9589,2600.4,2600.0,10.0]
[1748939818845,0.9589,2600.4,2599.9,5.06248004]
[1748939819462,0.9589,2600.4,2600.0,10.0]
[1748939819609,0.9589,2600.4,2599.9,5.06248004]
[1748939820038,0.9589,2600.4,2600.0,13.84609601]
[1748939820351,0.9589,2600.4,2600.1,3.84600507]
[1748939820512,0.9589,2600.4,2600.0,13.84607839]
[1748939820849,4.80447708,2600.4,2600.0,10.0]
[1748939821015,6.0626527,2600.4,2600.0,10.0]
[1748939821211,6.0626527,2600.4,2599.9,13.84628798]
[1748939821417,6.0626527,2600.4,2599.9,8.221116]
[1748939821613,6.0626527,2600.4,2599.8,18.19544741]
[1748939821832,0.9589,2600.4,2599.9,12.06733861]
[1748939822027,0.9589,2600.4,2600.0,10.0]
[1748939822454,0.9589,2600.4,2600.1,10.0]
[1748939823017,3.84515602,2600.7,2599.8,11.11538245]
[1748939823354,0.9593,2600.6,2600.1,3.84592325]
[1748939823735,8.73662029,2600.6,2600.1,3.84589571]
[1748939823927,4.8913,2600.6,2600.1,3.84589571]
[1748939824132,4.8913,2600.6,2600.1,10.0]
[1748939824454,8.7366433,2600.6,2600.1,10.0]
[1748939825360,4.8913,2600.6,2600.1,3.84597725]
[1748939825837,8.73660953,2600.6,2600.1,3.84597725]
[1748939826758,4.8913,2600.6,2600.1,3.84597725]
[1748939826962,0.9593,2600.6,2600.1,3.84594225]
[1748939827162,0.9593,2600.6,2600.2,10.0]
[1748939828072,4.8045705,2600.6,2600.2,10.0]
[1748939828368,3.84543489,2600.5,2599.9,10.5507093]
[1748939828534,3.84543489,2600.5,2599.9,18.0]
[1748939828730,0.9593,2600.6,2599.9,18.0]
[1748939828731,3.931,2600.6,2600.0,8.0]
[1748939828943,3.84559968,2600.4,2599.9,8.0]
[1748939829338,3.84559968,2600.4,2599.9,11.84629857]
[1748939829532,4.80416338,2600.5,2599.8,8.99586212]
[1748939829738,3.84564158,2600.4,2599.9,10.0]
[1748939830469,4.80417902,2600.5,2599.9,13.84629854]
[1748939830701,4.8897,2600.5,2599.9,20.0]
[1748939830971,4.8897,2600.5,2599.9,10.0]
[1748939831376,4.8897,2600.5,2599.9,13.84622532]
[1748939831576,3.84557853,2600.4,2600.0,10.0]
[1748939833247,4.88598358,2600.3,2599.9,10.0]
[1748939833449,1.0402,2600.3,2599.9,10.0]
[1748939833788,4.88602903,2600.3,2599.9,10.0]
[1748939834347,1.0402,2600.3,2599.9,10.0]
[1748939835278,1.0402,2600.3,2599.8,4.04182971]
[1748939835478,1.0402,2600.3,2599.9,10.0]
[1748939838285,1.0402,2600.3,2600.0,0.3845]
[1748939838490,2.04769142,2600.3,2599.9,10.0]
[1748939838680,5.89342568,2600.3,2599.9,10.0]
[1748939839179,2.04769142,2600.3,2599.9,10.0]
[1748939839380,1.0402,2600.3,2599.9,10.0]
[1748939840592,4.88591215,2600.3,2599.9,10.0]
[1748939840759,1.0402,2600.3,2599.9,13.84628283]
[1748939840960,1.0402,2600.3,2599.9,10.0]
[1748939841159,1.0402,2600.3,2599.9,3.8462057]
[1748939841560,1.0402,2600.3,2599.9,10.0]
[1748939842867,1.0402,2600.3,2599.9,13.8462098]
[1748939843072,1.0402,2600.3,2599.9,10.0]
[1748939843366,1.0402,2600.3,2600.0,10.0]
[1748939843571,1.0402,2600.3,2599.9,10.0]
[1748939843767,4.8859247,2600.3,2599.9,10.0]
[1748939845747,1.0402,2600.3,2599.9,10.0]
[1748939845917,1.0402,2600.3,2600.0,3.84613511]
[1748939846120,1.0402,2600.3,2599.9,20.0]
[1748939846297,1.0402,2600.3,2599.9,6.66577101]
[1748939846503,1.0402,2600.3,2599.9,3.84622627]
[1748939847928,1.0402,2600.3,2599.9,20.0]
[1748939848130,1.0402,2600.3,2599.9,13.84629648]
[1748939848423,1.0402,2600.3,2599.9,20.0]
[1748939848639,1.0402,2600.3,2599.9,3.84628553]
[1748939848787,1.0402,2600.3,2599.9,20.0]
[1748939849121,1.0402,2600.3,2599.9,10.0]
[1748939850801,3.84533898,2600.6,2600.1,18.47818052]
[1748939851003,0.02,2600.9,2600.0,13.703272]
[1748939851004,1.0289,2600.5,2600.0,13.703272]
[1748939851207,3.84575981,2600.3,2599.9,20.0]
[1748939851405,3.84575981,2600.3,2599.8,10.0]
[1748939851606,3.84562918,2600.4,2599.8,13.84637489]
[1748939851801,3.84562918,2600.4,2599.9,13.84629573]
[1748939852090,5.11061201,2600.4,2599.9,3.84629573]
[1748939853290,5.11061201,2600.4,2599.8,6.77589989]
[1748939853486,5.11061201,2600.4,2599.9,10.0]
[1748939853685,5.11061201,2600.4,2599.9,3.84629573]
[1748939853931,1.26498283,2600.4,2599.9,3.84629573]
[1748939854115,3.84558327,2600.4,2599.9,3.84629573]
[1748939854737,4.87439365,2600.5,2599.9,3.84629573]
[1748939854939,1.0289,2600.5,2599.9,3.84629573]
[1748939855239,3.84567535,2600.4,2599.9,20.0]
[1748939855413,3.84567535,2600.4,2599.9,10.0]
[1748939856741,3.84574679,2600.3,2599.9,10.0]
[1748939857605,3.84562884,2600.4,2599.9,10.0]
[1748939858631,3.84562884,2600.4,2599.9,3.84628416]
[1748939859315,3.84562884,2600.4,2599.8,14.03652234]
[1748939859505,3.84562884,2600.4,2599.9,10.0]
[1748939859941,4.87435686,2600.5,2599.9,13.8461984]
[1748939860111,3.8456034,2600.4,2599.9,3.8461984]
[1748939861042,4.87436467,2600.5,2599.9,3.8461984]
[1748939861337,3.8455978,2600.4,2599.9,3.8461984]
[1748939861537,3.8455978,2600.4,2599.8,14.03647971]
[1748939861738,3.8455978,2600.4,2599.9,10.0]
[1748939862235,4.87437855,2600.5,2600.0,10.0]
[1748939863104,3.84562149,2600.4,2600.0,10.0]
[1748939863305,3.84562149,2600.4,2599.9,3.84627024]
[1748939863602,4.87439019,2600.5,2600.0,3.84614814]
[1748939863798,6.13934465,2600.5,2600.0,10.0]
[1748939864036,2.29385446,2600.5,2600.0,10.0]
[1748939864241,6.13932427,2600.5,2599.9,3.84622883]
[1748939864632,3.8455677,2600.4,2599.9,3.84622883]
[1748939864829,6.22285446,2600.5,2599.9,3.84622883]
[1748939865139,3.84559275,2600.4,2599.9,3.84622883]
[1748939865436,1.0289,2600.5,2600.0,3.8460653]
[1748939865644,4.9579,2600.5,2600.0,3.8460653]
[1748939866221,8.80331578,2600.5,2600.0,3.8460653]
[1748939866423,8.80331578,2600.5,2599.9,5.32303722]
[1748939866424,8.80331578,2600.5,2599.9,9.16928644]
[1748939866839,4.9579,2600.5,2600.0,3.84610041]
[1748939867153,8.80335538,2600.5,2600.0,3.84610041]
[1748939867308,1.0289,2600.5,2600.1,3.84597518]
[1748939867638,0.9985,2600.9,2600.4,10.0]
[1748939867837,0.9985,2600.9,2600.0,1.84008461]
[1748939867838,3.84581692,2600.3,2600.0,8.0]
[1748939868041,1.0065,2600.4,2600.1,4.483354]
[1748939868361,4.85207072,2600.4,2600.1,4.483354]
[1748939868522,4.85207072,2600.4,2600.0,4.319406]
[1748939869044,4.85207072,2600.4,2600.1,10.0]
[1748939869225,4.85207072,2600.4,2600.1,4.287199]
[1748939869430,1.0065,2600.4,2600.1,4.287199]
[1748939870652,4.85211095,2600.4,2600.1,4.287199]
[1748939870838,1.0065,2600.4,2600.1,4.287199]
[1748939872010,1.0065,2600.4,2600.2,10.0]
[1748939872215,1.0065,2600.4,2600.1,16.264381]
[1748939872544,1.0065,2600.4,2600.2,10.0]
[1748939873446,1.0065,2600.4,2600.1,16.244381]
[1748939873620,1.0065,2600.4,2600.2,10.0]
[1748939873945,1.0065,2600.4,2600.1,6.264381]
[1748939874114,1.0065,2600.4,2600.2,10.0]
[1748939874316,1.0065,2600.4,2600.1,7.614008]
[1748939874516,1.0065,2600.4,2600.2,10.0]
[1748939874819,1.0065,2600.4,2600.1,3.8458865]
[1748939875013,1.0065,2600.4,2600.1,17.600345]
[1748939875215,1.0065,2600.4,2600.2,10.0]
[1748939875415,1.0065,2600.4,2600.1,7.600345]
[1748939875618,1.0065,2600.4,2600.1,3.84597194]
[1748939875916,1.0065,2600.4,2600.1,17.600345]
[1748939876116,1.0065,2600.4,2600.2,10.0]
[1748939876338,1.0065,2600.4,2600.1,8.141971]
[1748939877444,1.0065,2600.4,2600.2,10.0]
[1748939877643,1.0065,2600.4,2600.1,6.792344]
[1748939877644,1.0065,2600.4,2600.1,3.84593721]
[1748939878031,1.0652,2600.6,2600.1,3.84593721]
[1748939878232,4.9932,2600.6,2600.2,10.0]
[1748939878764,0.974,2600.8,2600.4,2.39322625]
[1748939879122,4.81902826,2600.8,2600.2,8.25705862]
[1748939879461,0.974,2600.8,2600.2,5.86383237]
[1748939879671,3.84520233,2600.7,2600.2,8.0]
[1748939879862,3.84520233,2600.7,2600.2,11.84580053]
[1748939880045,3.84552772,2600.5,2600.0,20.0]
[1748939880370,3.84552772,2600.5,2600.1,1.45]
[1748939881474,3.84558131,2600.4,2600.1,10.0]
[1748939881768,3.84558131,2600.4,2600.1,7.012827]
[1748939881973,3.84544164,2600.5,2600.1,7.012827]
[1748939882771,3.84544164,2600.5,2600.0,10.0]
[1748939882772,3.84544164,2600.5,2600.2,10.0]
[1748939882947,8.74733889,2600.6,2600.1,7.782454]
[1748939883137,10.24591232,2600.6,2600.2,10.0]
[1748939883338,10.24591232,2600.6,2600.1,7.782454]
[1748939883538,10.24591232,2600.6,2600.2,10.0]
[1748939883759,10.24591232,2600.6,2600.1,7.782454]
[1748939883938,10.24591232,2600.6,2600.2,10.0]
[1748939884147,10.24591232,2600.6,2600.1,7.823454]
[1748939884348,10.24591232,2600.6,2600.2,10.0]
[1748939884544,10.24591232,2600.6,2600.1,8.99916657]
[1748939884946,10.24591232,2600.6,2600.2,10.0]
[1748939885144,10.24591232,2600.6,2600.1,10.0]
[1748939885370,6.40057343,2600.6,2599.9,13.84622777]
[1748939885573,3.84551559,2600.5,2600.0,10.0]
[1748939885745,3.84551559,2600.5,2600.1,10.0]
[1748939886278,8.7473403,2600.6,2600.1,10.0]
[1748939886464,3.84544404,2600.5,2600.1,10.0]
[1748939886773,8.74733595,2600.6,2600.1,10.0]
[1748939886973,6.40057028,2600.6,2600.1,10.0]
[1748939887179,3.84544727,2600.5,2600.0,3.84614201]
[1748939887355,3.84544727,2600.5,2600.1,10.0]
[1748939888352,1.0294,2600.6,2600.1,3.84597692]
[1748939888565,4.87474737,2600.6,2600.1,20.0]
[1748939888764,4.87474737,2600.6,2600.1,8.735632]
[1748939889077,4.87474737,2600.6,2599.9,12.03456914]
[1748939889078,2.39322625,2600.4,2599.9,10.0]
[1748939889280,3.8459406,2600.2,2599.7,10.0]
[1748939889582,4.8753406,2600.2,2599.9,10.0]
[1748939889748,4.8753406,2600.2,2599.8,18.0]
[1748939890148,4.8753406,2600.2,2599.9,10.0]
[1748939891292,1.0294,2600.2,2599.9,10.0]
[1748939891441,4.87528844,2600.2,2599.9,10.0]
[1748939892250,4.87528844,2600.2,2599.6,1.45]
[1748939892251,3.84615074,2600.1,2599.6,1.45]
[1748939892565,3.84615074,2600.1,2599.6,10.33953263]
[1748939892566,7.77415074,2600.1,2599.6,10.33953263]
[1748939892769,7.77415074,2600.1,2599.7,10.0]
[1748939893089,3.84615074,2600.1,2599.6,10.0]
[1748939893283,3.84615074,2600.1,2599.7,10.0]
[1748939893674,10.06808796,2600.2,2599.7,6.535888]
[1748939893876,2.29418759,2600.2,2599.8,8.793471]
[1748939894065,2.29418759,2600.2,2599.9,3.84629635]
[1748939894066,1.0294,2600.2,2599.9,3.84629635]
[1748939894671,1.0294,2600.2,2599.9,10.0]
[1748939895760,1.0294,2600.2,2599.9,7.861002]
[1748939895959,1.0294,2600.2,2600.0,10.0]
[1748939896262,1.0294,2600.2,2599.9,9.100012]
[1748939896476,1.0294,2600.2,2599.9,17.197167]
[1748939896659,1.0294,2600.2,2600.0,10.0]
[1748939897287,1.0294,2600.2,2599.9,7.19692]
[1748939897590,1.0294,2600.2,2599.8,8.944268]
[1748939897791,4.87530618,2600.2,2599.7,13.84658447]
[1748939897998,4.87530618,2600.2,2599.7,20.0]
[1748939898318,4.87530618,2600.2,2599.7,3.84659529]
[1748939898499,4.87530618,2600.2,2599.7,15.324425]
[1748939898792,3.8460246,2600.1,2599.7,10.0]
[1748939898994,3.84614453,2600.1,2599.7,10.0]
[1748939899294,3.84614453,2600.1,2599.7,8.708722]
[1748939899599,3.84614453,2600.1,2599.7,2.847465]
[1748939900697,3.928,2600.1,2599.7,2.847465]
[1748939900998,7.77401526,2600.1,2599.7,2.847465]
[1748939902163,3.84601526,2600.1,2599.7,2.847465]
[1748939902407,1.0294,2600.2,2599.9,10.0]
[1748939902408,4.9574,2600.2,2599.9,10.0]
[1748939902569,8.8033148,2600.2,2599.8,14.890048]
[1748939902769,8.8033148,2600.2,2599.7,1.80577978]
[1748939903100,8.8033148,2600.2,2599.7,10.0]
[1748939903266,3.84605157,2600.1,2599.7,10.0]
[1748939904202,8.80328575,2600.2,2599.7,10.0]
[1748939904500,8.80328575,2600.2,2599.7,3.8465755]
[1748939905667,8.80328575,2600.2,2599.8,8.0]
[1748939906203,4.9574,2600.2,2599.8,8.0]
[1748939906401,8.80332111,2600.2,2599.8,8.0]
[1748939906967,3.84602518,2600.1,2599.7,8.0]
[1748939908597,3.84616069,2600.0,2599.7,8.0]
[1748939908800,3.84607113,2600.1,2599.7,8.0]
[1748939909601,3.84607113,2600.1,2599.7,10.0]
[1748939910104,3.84607113,2600.1,2599.8,10.0]
[1748939910307,8.80325923,2600.2,2599.6,15.546642]
[1748939910503,3.84610374,2600.1,2599.8,10.0]
[1748939910910,8.80333576,2600.2,2599.8,10.0]
[1748939911106,4.9574,2600.2,2599.8,10.0]
[1748939911312,4.9574,2600.2,2599.7,8.504084]
[1748939911628,4.87531747,2600.2,2599.7,8.504084]
[1748939912289,1.0973,2600.5,2600.0,3.84613906]
[1748939912526,0.45592004,2601.5,2600.5,3.84533456]
[1748939912527,1.0973,2600.8,2600.5,3.84533456]
[1748939912736,0.02,2600.9,2600.6,3.84526647]
[1748939912895,0.02,2600.9,2600.6,13.537391]
[1748939913078,0.02,2600.9,2600.5,16.54673827]
[1748939913272,0.02,2600.9,2600.8,26.77094346]
[1748939913579,0.02,2600.9,2600.8,24.77094346]
[1748939913779,0.02,2600.9,2600.8,14.09351977]
[1748939914720,1.0511,2601.4,2601.1,9.777994]
[1748939914918,1.0511,2601.4,2600.9,13.8446939]
[1748939914919,1.0511,2601.4,2600.9,8.0]
[1748939915119,3.8442397,2601.3,2601.0,3.374957]
[1748939915324,4.89524535,2601.4,2601.1,10.0]
[1748939915521,4.89524535,2601.4,2601.0,10.0]
[1748939915844,4.89524535,2601.4,2600.9,8.0]
[1748939915845,3.84425202,2601.3,2600.9,8.0]
[1748939915994,3.84425202,2601.3,2601.0,3.184788]
[1748939916177,4.89521357,2601.4,2601.1,10.0]
[1748939916374,3.84432081,2601.3,2601.1,10.0]